bitfinex-derivatives/quotes_BTCF0:USTF0_20251023
["timestamp","ask_amount","ask_price","bid_price","bid_amount"]
[1761253230287,0.52691774,109480.0,109470.0,0.508004]
[1761253230586,0.52691774,109480.0,109470.0,0.174524]
[1761253230794,0.52691774,109480.0,109470.0,0.0832]
[1761253230990,0.52691774,109480.0,109470.0,0.507684]
[1761253231195,0.52691774,109480.0,109470.0,0.503684]
[1761253231395,0.47817715,109480.0,109470.0,0.503684]
[1761253232298,0.52681824,109480.0,109470.0,0.503684]
[1761253232599,0.47817715,109480.0,109470.0,0.503684]
[1761253233690,0.52681313,109480.0,109470.0,0.503684]
[1761253233890,0.52681313,109480.0,109470.0,0.503444]
[1761253234399,0.0734626,109480.0,109470.0,0.503444]
[1761253234595,0.17238835,109480.0,109470.0,0.503444]
[1761253234792,0.08107275,109480.0,109470.0,0.503444]
[1761253234998,0.05675313,109480.0,109470.0,0.903444]
[1761253235699,0.02432376,109480.0,109470.0,0.903444]
[1761253235890,0.05675313,109490.0,109480.0,0.1537056]
[1761253236091,0.02432376,109490.0,109480.0,0.1931456]
[1761253236799,0.05675313,109500.0,109490.0,0.1705073]
[1761253236990,0.05675313,109510.0,109500.0,0.1931289]
[1761253237197,0.02432376,109510.0,109500.0,0.1931289]
[1761253237409,0.03242937,109520.0,109510.0,0.1704906]
[1761253237704,0.03242937,109520.0,109510.0,0.5031706]
[1761253238092,0.05675117,109520.0,109510.0,0.5031706]
[1761253238296,0.05675117,109520.0,109510.0,0.9031706]
[1761253238601,0.13991758,109530.0,109520.0,0.1931123]
[1761253238602,0.03242937,109530.0,109520.0,0.1931123]
[1761253238802,0.05097805,109540.0,109530.0,0.1704739]
[1761253239107,0.05097805,109540.0,109530.0,0.5031539]
[1761253240299,0.55291858,109540.0,109530.0,0.4118]
[1761253240500,0.55291858,109540.0,109530.0,0.5030739]
[1761253240501,0.57802816,109540.0,109530.0,0.5030739]
[1761253240801,0.62867154,109540.0,109530.0,0.5030739]
[1761253241305,0.56447948,109540.0,109530.0,0.48452132]
[1761253242204,0.56447948,109540.0,109530.0,0.02120742]
[1761253242502,0.56447948,109540.0,109520.0,0.10183]
[1761253242503,0.167384,109530.0,109520.0,0.10183]
[1761253242699,0.56227672,109530.0,109520.0,0.29539]
[1761253242898,0.5873863,109530.0,109520.0,0.29539]
[1761253243101,0.5873863,109530.0,109520.0,0.3866723]
[1761253243903,0.5893863,109530.0,109520.0,0.29539]
[1761253244403,0.5893863,109530.0,109520.0,0.3866723]
[1761253245498,0.5893863,109530.0,109520.0,0.5254723]
[1761253247407,0.5893863,109530.0,109520.0,0.10183]
[1761253247606,0.5893863,109530.0,109520.0,0.43371]
[1761253247911,0.1674006,109510.0,109500.0,0.10183]
[1761253248100,0.54609626,109510.0,109500.0,0.5250087]
[1761253248407,0.58740621,109510.0,109500.0,0.37164]
[1761253248615,0.58740621,109510.0,109500.0,0.33188]
[1761253249099,0.0912989,109500.0,109490.0,0.1705066]
[1761253249306,0.54610022,109500.0,109490.0,0.5024666]
[1761253249605,0.5712098,109500.0,109490.0,0.5024666]
[1761253249808,0.22491487,109500.0,109490.0,0.5024666]
[1761253250008,0.59470132,109500.0,109490.0,0.5024666]
[1761253250203,0.5712098,109500.0,109490.0,0.5024666]
[1761253250407,0.5712098,109500.0,109490.0,0.1715066]
[1761253250599,0.6198109,109500.0,109490.0,0.5032666]
[1761253251107,0.5437009,109500.0,109490.0,0.5032666]
[1761253251410,0.4950998,109500.0,109490.0,0.5042666]
[1761253251611,0.14880487,109500.0,109490.0,0.5042666]
[1761253251809,0.03239639,109500.0,109490.0,0.5022666]
[1761253252006,0.03239639,109500.0,109490.0,0.9022666]
[1761253252209,0.03239639,109510.0,109500.0,0.1931289]
[1761253252417,0.17228529,109520.0,109510.0,0.0912906]
[1761253252604,0.12368419,109520.0,109510.0,0.5021306]
[1761253252802,0.12367869,109520.0,109510.0,0.5021306]
[1761253253316,0.5436816,109530.0,109520.0,0.1881423]
[1761253253707,0.6204216,109530.0,109520.0,0.09686]
[1761253254408,0.5718205,109530.0,109520.0,0.09686]
[1761253254615,0.5718205,109530.0,109520.0,0.1881423]
[1761253255020,0.5738205,109530.0,109520.0,0.1881423]
[1761253255808,0.5738205,109530.0,109520.0,0.09686]
[1761253256410,0.54142411,109530.0,109520.0,0.09686]
[1761253257815,0.5738205,109530.0,109520.0,0.09686]
[1761253258215,0.54142411,109530.0,109520.0,0.09686]
[1761253259314,0.54142411,109530.0,109520.0,0.1881423]
[1761253259615,0.54142411,109530.0,109520.0,0.09686]
[1761253260615,0.5738205,109530.0,109520.0,0.09686]
[1761253260916,0.128179,109500.0,109490.0,0.166414]
[1761253261114,0.1680344,109510.0,109500.0,0.1881585]
[1761253261311,0.51432933,109510.0,109500.0,0.09686]
[1761253261522,0.0913073,109490.0,109480.0,0.09774]
[1761253261709,0.51434223,109490.0,109480.0,0.42894]
[1761253261911,0.53945181,109490.0,109480.0,0.42894]
[1761253262309,0.57187195,109490.0,109480.0,0.42894]
[1761253262912,0.57187195,109490.0,109480.0,0.5212556]
[1761253263113,0.22557702,109490.0,109480.0,0.5212556]
[1761253263313,0.1680473,109490.0,109480.0,0.5212556]
[1761253263714,0.0913073,109490.0,109480.0,0.5232556]
[1761253263915,0.1281873,109490.0,109480.0,0.5232556]
[1761253264116,0.1680473,109490.0,109480.0,0.5212556]
[1761253264317,0.0913073,109490.0,109480.0,0.5222556]
[1761253264817,0.1680473,109490.0,109480.0,0.5222556]
[1761253265520,0.51434223,109490.0,109480.0,0.5222556]
[1761253265719,0.53945181,109490.0,109480.0,0.5222556]
[1761253266121,0.19315688,109490.0,109480.0,0.5222556]
[1761253266322,0.1680473,109490.0,109480.0,0.5222556]
[1761253267528,0.1281873,109490.0,109480.0,0.5222556]
[1761253267733,0.0913073,109490.0,109480.0,0.5222556]
[1761253268131,0.14882862,109500.0,109490.0,0.1664173]
[1761253268339,0.0912989,109500.0,109490.0,0.1664173]
[1761253268539,0.16059584,109510.0,109500.0,0.09686]
[1761253268835,0.16059584,109510.0,109500.0,0.5189591]
[1761253269034,0.06930014,109510.0,109500.0,0.5189591]
[1761253269237,0.54674347,109520.0,109500.0,0.5189591]
[1761253269437,0.62048326,109520.0,109510.0,0.1664012]
[1761253269635,0.05752972,109520.0,109510.0,0.1664012]
[1761253269838,0.12370304,109520.0,109510.0,0.1664012]
[1761253270024,0.0912829,109520.0,109510.0,0.1664012]
[1761253270429,0.001,109520.0,109510.0,0.1664012]
[1761253270632,0.00024955,109520.0,109510.0,0.1564012]
[1761253270830,0.09153245,109520.0,109510.0,0.1564012]
[1761253272040,0.0912829,109520.0,109510.0,0.1564012]
[1761253272335,0.1700229,109520.0,109500.0,0.02175]
[1761253272528,0.168048,109490.0,109480.0,0.5195758]
[1761253272731,0.37460628,109490.0,109480.0,0.42826]
[1761253272930,0.39971586,109490.0,109480.0,0.42826]
[1761253273132,0.39971586,109490.0,109480.0,0.09774]
[1761253273644,0.39971586,109490.0,109480.0,0.42854]
[1761253273826,0.39971586,109490.0,109480.0,0.43054]
[1761253274137,0.39971586,109490.0,109480.0,0.43058]
[1761253274534,0.19315758,109490.0,109480.0,0.43058]
[1761253274742,0.168048,109490.0,109480.0,0.43058]
[1761253274948,0.168048,109490.0,109480.0,0.5218964]
[1761253275147,0.091308,109490.0,109480.0,0.5218964]
[1761253275445,0.091308,109490.0,109480.0,0.5228964]
[1761253276840,0.0913051,109500.0,109490.0,0.166418]
[1761253277747,0.1680451,109500.0,109490.0,0.07511]
[1761253277944,0.091308,109490.0,109480.0,0.5218907]
[1761253278449,0.091308,109490.0,109480.0,0.5198907]
[1761253279242,0.091308,109490.0,109480.0,0.5228907]
[1761253279845,0.11641458,109500.0,109490.0,0.166418]
[1761253280039,0.091305,109500.0,109490.0,0.166418]
[1761253280245,0.128185,109500.0,109490.0,0.496818]
[1761253281651,0.168045,109500.0,109490.0,0.496698]
[1761253281846,0.11640708,109510.0,109490.0,0.896698]
[1761253282151,0.0912975,109510.0,109500.0,0.1881597]
[1761253282650,0.1281674,109520.0,109510.0,0.1663985]
[1761253282948,0.11638908,109530.0,109520.0,0.179773]
[1761253283143,0.0912795,109530.0,109520.0,0.179773]
[1761253283344,0.1544995,109530.0,109520.0,0.08849]
[1761253283855,0.36105778,109530.0,109520.0,0.179773]
[1761253284054,0.36105778,109530.0,109520.0,0.38633128]
[1761253284055,0.02510958,109530.0,109520.0,0.38633128]
[1761253284251,0.05372021,109550.0,109540.0,0.1797563]
[1761253284252,0.12877354,109550.0,109540.0,0.1797563]
[1761253284450,0.12877354,109550.0,109540.0,0.5099563]
[1761253284451,0.03751014,109550.0,109540.0,0.5099563]
[1761253284651,0.00509,109550.0,109540.0,0.5099563]
[1761253285750,0.00509,109550.0,109540.0,0.5109563]
[1761253287347,0.06500045,109610.0,109580.0,0.173233]
[1761253287548,0.1261564,109630.0,109600.0,0.37977068]
[1761253287753,0.1566964,109630.0,109620.0,0.06214]
[1761253288141,0.1518796,109650.0,109620.0,0.082]
[1761253288347,0.1707031,109640.0,109630.0,0.33184]
[1761253288745,0.1518831,109640.0,109630.0,0.39398]
[1761253288943,0.0607,109640.0,109630.0,0.4851714]
[1761253289147,0.26725828,109640.0,109630.0,0.39398]
[1761253289343,0.26725828,109640.0,109630.0,0.4851714]
[1761253289548,0.26925828,109640.0,109630.0,0.4851714]
[1761253289950,0.0627,109640.0,109630.0,0.4851714]
[1761253290555,0.1538831,109640.0,109630.0,0.39398]
[1761253290949,0.1558831,109640.0,109630.0,0.39398]
[1761253291553,0.1558831,109640.0,109630.0,0.4850914]
[1761253291950,0.1558831,109640.0,109630.0,0.4850114]
[1761253293657,0.1558831,109640.0,109630.0,0.39382]
[1761253293856,0.1558831,109640.0,109630.0,0.4850114]
[1761253294454,0.004,109640.0,109630.0,0.69156968]
[1761253294661,0.1518713,109660.0,109650.0,0.06214]
[1761253294860,0.1566618,109670.0,109660.0,0.01986]
[1761253295060,0.1566618,109670.0,109660.0,0.06214]
[1761253295556,0.1566618,109670.0,109660.0,0.1731665]
[1761253295755,0.0655,109670.0,109660.0,0.1731665]
[1761253295961,0.1566582,109670.0,109660.0,0.1731665]
[1761253296157,0.0655,109670.0,109660.0,0.083]
[1761253296364,0.1566582,109670.0,109660.0,0.1741665]
[1761253296954,0.1606582,109670.0,109660.0,0.1741665]
[1761253297161,0.1606582,109670.0,109660.0,0.083]
[1761253297758,0.1606582,109670.0,109660.0,0.1741665]
[1761253298052,0.0088,109670.0,109660.0,0.1741665]
[1761253298858,0.0088,109670.0,109660.0,0.38072478]
[1761253299069,0.0088,109670.0,109660.0,0.1741665]
[1761253299866,0.15184,109700.0,109690.0,0.06214]
[1761253300055,0.35839828,109700.0,109690.0,0.3931]
[1761253301361,0.35839828,109700.0,109690.0,0.3941]
[1761253301565,0.35839828,109700.0,109690.0,0.39422]
[1761253302062,0.37821828,109700.0,109690.0,0.06314]
[1761253302264,0.77821828,109700.0,109690.0,0.001]
[1761253302463,0.37821828,109700.0,109690.0,0.001]
[1761253303364,0.37821828,109700.0,109690.0,0.33208]
[1761253304562,0.17166,109700.0,109690.0,0.33208]
[1761253304868,0.37821828,109700.0,109690.0,0.33208]
[1761253305966,0.17166,109700.0,109690.0,0.33208]
[1761253306162,0.37821828,109700.0,109690.0,0.33208]
[1761253307472,0.1518582,109670.0,109660.0,0.082]
[1761253307664,0.1518582,109670.0,109650.0,0.06214]
[1761253307665,0.1518665,109660.0,109650.0,0.06214]
[1761253307863,0.35842478,109660.0,109650.0,0.39274]
[1761253308065,0.1213256,109670.0,109660.0,0.01986]
[1761253308272,0.0911656,109670.0,109660.0,0.37972478]
[1761253308772,0.1518554,109680.0,109670.0,0.1532981]
[1761253308971,0.0911554,109680.0,109670.0,0.4838581]
[1761253309966,0.0921554,109680.0,109670.0,0.4838581]
[1761253310167,0.001,109680.0,109670.0,0.4838581]
[1761253310367,0.0921499,109680.0,109670.0,0.4838581]
[1761253310768,0.0921499,109680.0,109670.0,0.4848581]
[1761253311678,0.001,109680.0,109670.0,0.4848581]
[1761253311870,0.001,109680.0,109670.0,0.69141638]
[1761253312070,0.001,109680.0,109670.0,0.4848581]
[1761253312573,0.0921499,109680.0,109670.0,0.4848581]
[1761253317288,0.11620285,109680.0,109670.0,0.4848581]
[1761253319083,0.18533285,109680.0,109670.0,0.4848581]
[1761253319383,0.18515276,109680.0,109670.0,0.4848581]
[1761253320077,0.14869276,109680.0,109670.0,0.4848581]
[1761253321079,0.44723104,109680.0,109670.0,0.06314]
[1761253321285,0.49371148,109680.0,109670.0,0.4838581]
[1761253321494,0.18354991,109680.0,109670.0,0.4838581]
[1761253321788,0.18549937,109680.0,109670.0,0.4838581]
[1761253321984,0.21816937,109680.0,109670.0,0.4838581]
[1761253322180,0.19376981,109680.0,109670.0,0.3927]
[1761253322386,0.19376981,109680.0,109670.0,0.4838582]
[1761253322776,0.19376981,109680.0,109670.0,0.4837382]
[1761253323182,0.2418531,109680.0,109670.0,0.4837382]
[1761253324194,0.23181329,109680.0,109670.0,0.4837382]
[1761253324389,0.23181329,109680.0,109670.0,0.06314]
[1761253324692,0.23181329,109680.0,109670.0,0.4835381]
[1761253324888,0.23181329,109680.0,109670.0,0.1542981]
[1761253325189,0.23181329,109680.0,109670.0,0.4834981]
[1761253325378,0.19914329,109680.0,109670.0,0.69005638]
[1761253325582,0.19528964,109680.0,109670.0,0.4834981]
[1761253326586,0.10413974,109680.0,109670.0,0.69005638]
[1761253326793,0.19528954,109680.0,109670.0,0.69005638]
[1761253326992,0.19528954,109680.0,109670.0,0.4834981]
[1761253327287,0.10413974,109680.0,109670.0,0.4834981]
[1761253327696,0.10413974,109680.0,109670.0,1.09005638]
[1761253327697,0.08168964,109680.0,109670.0,1.09005638]
[1761253327890,0.03360635,109680.0,109670.0,1.09005638]
[1761253328990,0.02469855,109680.0,109670.0,1.09005638]
[1761253329188,0.02469855,109680.0,109670.0,1.08905638]
[1761253329594,0.02446295,109680.0,109670.0,1.08905638]
[1761253329796,0.02446295,109680.0,109670.0,0.7606755]
[1761253330292,0.0570693,109690.0,109680.0,0.1865098]
[1761253330494,0.0570693,109690.0,109680.0,0.39306808]
[1761253332293,0.02446295,109690.0,109680.0,0.39306808]
[1761253332691,0.02446295,109690.0,109680.0,0.53131369]
[1761253335893,0.05573075,109700.0,109680.0,0.93131369]
[1761253336092,0.05573075,109700.0,109690.0,0.85978539]
[1761253336093,0.0231244,109700.0,109690.0,0.85978539]
[1761253336391,0.03740635,109710.0,109700.0,0.1864932]
[1761253336592,0.0048,109710.0,109700.0,0.53129709]
[1761253336791,0.0048,109710.0,109700.0,0.5148932]
[1761253336994,0.0048,109710.0,109700.0,0.85969709]
[1761253337891,0.0048,109710.0,109700.0,1.25969709]
[1761253338690,0.0048,109710.0,109700.0,1.26069709]
[1761253339191,0.0048,109710.0,109700.0,1.25969709]
[1761253339792,0.07393,109710.0,109700.0,0.1864932]
[1761253340096,0.07393,109710.0,109700.0,0.5146532]
[1761253341397,0.1650549,109710.0,109700.0,0.5146532]
[1761253342500,0.0048,109710.0,109700.0,0.5146532]
[1761253342905,0.0048,109710.0,109700.0,0.85945709]
[1761253346007,0.0048,109710.0,109700.0,0.5146532]
[1761253346693,0.0048,109710.0,109700.0,0.9146532]
[1761253346893,0.0048,109710.0,109700.0,0.5146532]
[1761253347607,0.0048,109710.0,109700.0,0.85945709]
[1761253348909,0.0048,109710.0,109700.0,1.25945709]
[1761253349906,0.0048,109710.0,109700.0,1.27278766]
[1761253351007,0.0048,109710.0,109700.0,0.94462766]
[1761253351208,0.0048,109710.0,109700.0,1.27222766]
[1761253352608,0.0048,109710.0,109700.0,0.52730377]
[1761253352806,0.03888,109710.0,109700.0,0.52730377]
[1761253354111,0.03888,109710.0,109700.0,0.19982377]
[1761253354308,0.03888,109710.0,109700.0,0.52714377]
[1761253354504,0.07239,109710.0,109700.0,0.52706377]
[1761253354901,0.1635149,109710.0,109700.0,0.52706377]
[1761253355106,0.1635149,109710.0,109700.0,0.19982377]
[1761253355302,0.92792879,109710.0,109700.0,0.01333057]
[1761253355507,0.1587398,109680.0,109670.0,0.08867]
[1761253355808,0.1587398,109680.0,109670.0,0.5071481]
[1761253356004,0.1587398,109680.0,109670.0,0.41599]
[1761253356810,0.1587398,109680.0,109670.0,0.41699]
[1761253357008,0.50717825,109700.0,109690.0,0.1568215]
[1761253357009,0.05497414,109700.0,109690.0,0.1568215]
[1761253357213,0.05358606,109710.0,109700.0,0.08565]
[1761253357214,0.244825,109710.0,109700.0,0.08565]
[1761253357403,0.19603894,109710.0,109700.0,0.1767832]
[1761253357603,0.19603894,109710.0,109700.0,0.08565]
[1761253358414,0.59603894,109710.0,109700.0,0.41321]
[1761253358715,0.61848904,109710.0,109700.0,0.08565]
[1761253359014,0.61848904,109710.0,109700.0,0.41313]
[1761253359209,0.61848904,109710.0,109700.0,0.39316]
[1761253359707,0.6672751,109710.0,109700.0,0.4842932]
[1761253360720,0.1783332,109700.0,109690.0,0.1246415]
[1761253361010,0.1783332,109700.0,109690.0,0.4843015]
[1761253361217,0.1587315,109690.0,109680.0,0.1568297]
[1761253361514,0.1587315,109690.0,109680.0,0.4842697]
[1761253366612,0.1587315,109690.0,109680.0,0.5042397]
[1761253367219,0.1587315,109690.0,109680.0,0.5052397]
[1761253367418,0.1587315,109690.0,109680.0,0.5062397]
[1761253367723,0.1587315,109690.0,109680.0,0.51946256]
[1761253369315,0.1587315,109690.0,109680.0,0.51746256]
[1761253370023,0.1587315,109690.0,109680.0,0.51846256]
[1761253370523,0.1587315,109690.0,109680.0,0.51946256]
[1761253371720,0.1587315,109690.0,109680.0,0.52466393]
[1761253372322,0.1252215,109690.0,109680.0,0.52466393]
[1761253373322,0.0911338,109700.0,109680.0,0.52466393]
[1761253373527,0.1561438,109700.0,109690.0,0.1743614]
[1761253373826,0.1561438,109700.0,109690.0,0.18758426]
[1761253380034,0.1561438,109700.0,109690.0,0.1743614]
[1761253380422,0.1226338,109700.0,109690.0,0.1743614]
[1761253381030,0.0315,109700.0,109690.0,0.1743614]
[1761253381235,0.19159894,109710.0,109700.0,0.08322]
[1761253381429,0.19159894,109710.0,109700.0,0.41038]
[1761253382435,0.12844894,109710.0,109700.0,0.5015131]
[1761253382637,0.03732404,109710.0,109700.0,0.5015131]
[1761253382826,0.06795,109710.0,109700.0,0.5015131]
[1761253383134,0.1590747,109710.0,109700.0,0.1743531]
[1761253383334,0.1590747,109710.0,109700.0,0.06473]
[1761253383335,0.1772647,109710.0,109700.0,0.06473]
[1761253383538,0.172473,109700.0,109690.0,0.155868]
[1761253383836,0.154283,109700.0,109690.0,0.501478]
[1761253384628,0.0315,109700.0,109690.0,0.501478]
[1761253384829,0.0904001,109710.0,109700.0,0.174353]
[1761253385035,0.0048,109710.0,109700.0,0.51915689]
[1761253385845,0.0048,109710.0,109700.0,0.174353]
[1761253387444,0.0959247,109710.0,109700.0,0.501473]
[1761253388054,0.0048,109710.0,109700.0,0.501473]
[1761253388657,0.1590747,109710.0,109700.0,0.501473]
[1761253389353,0.06795,109710.0,109700.0,0.501473]
[1761253389858,0.0048,109710.0,109700.0,0.501473]
[1761253391746,0.1590746,109710.0,109700.0,0.08322]
[1761253392052,0.55459253,109710.0,109700.0,0.39181]
[1761253392250,0.23223874,109710.0,109700.0,0.39181]
[1761253392454,0.20978864,109710.0,109700.0,0.39181]
[1761253393250,0.60337859,109710.0,109700.0,0.39181]
[1761253393546,0.62582869,109710.0,109700.0,0.39181]
[1761253394848,0.48676851,109710.0,109700.0,0.39181]
[1761253395052,0.48676851,109710.0,109700.0,0.5014329]
[1761253395656,0.1724729,109700.0,109690.0,0.00520108]
[1761253395851,0.41074065,109700.0,109690.0,0.33228108]
[1761253396058,0.43319075,109700.0,109690.0,0.33228108]
[1761253397459,0.43319075,109700.0,109690.0,0.39701108]
[1761253397760,0.43319075,109700.0,109690.0,0.39701089]
[1761253398156,0.83319075,109700.0,109690.0,0.03773089]
[1761253398354,0.83319075,109700.0,109690.0,0.00520089]
[1761253399254,0.01819,109680.0,109670.0,0.06473]
[1761253399456,0.40266313,109680.0,109670.0,0.35920909]
[1761253399648,0.43325654,109680.0,109670.0,0.35920909]
[1761253399852,0.43325654,109680.0,109670.0,0.32708]
[1761253400152,0.45767395,109680.0,109670.0,0.32708]
[1761253400351,0.45767395,109680.0,109670.0,0.39181]
[1761253400760,0.42510072,109680.0,109670.0,0.39181]
[1761253400950,0.42510072,109680.0,109670.0,0.35961]
[1761253402664,0.42510072,109680.0,109670.0,0.03253]
[1761253402665,0.82510072,109680.0,109670.0,0.03253]
[1761253402867,0.82510072,109680.0,109670.0,0.39181]
[1761253403969,0.82510072,109680.0,109670.0,0.32708]
[1761253404667,0.150676,109660.0,109650.0,0.17406588]
[1761253404867,0.150676,109660.0,109650.0,0.50114588]
[1761253405667,0.091166,109660.0,109650.0,0.50114588]
[1761253405867,0.0224501,109670.0,109660.0,0.168176]
[1761253406074,0.17507391,109690.0,109680.0,0.1698794]
[1761253406364,0.21849964,109700.0,109690.0,0.0911411]
[1761253406666,0.17443631,109700.0,109690.0,0.1671511]
[1761253407256,0.1500189,109700.0,109690.0,0.1671511]
[1761253408159,0.1202889,109700.0,109690.0,0.1671511]
[1761253408463,0.1489689,109700.0,109690.0,0.1671511]
[1761253408768,0.1489689,109700.0,109690.0,0.4942311]
[1761253409269,0.35471261,109700.0,109690.0,0.38613]
[1761253409471,0.35471261,109700.0,109670.0,0.01776]
[1761253409472,0.1489794,109680.0,109670.0,0.1679622]
[1761253409768,0.1489794,109680.0,109670.0,0.4950422]
[1761253410267,0.1489794,109680.0,109670.0,0.1679622]
[1761253410459,0.1672294,109680.0,109670.0,0.4950422]
[1761253411859,0.1672294,109680.0,109670.0,0.38613]
[1761253412566,0.37297311,109680.0,109670.0,0.38613]
[1761253412771,0.39560534,109680.0,109670.0,0.38613]
[1761253412968,0.18986163,109680.0,109670.0,0.38613]
[1761253413268,0.1672294,109680.0,109670.0,0.38613]
[1761253413867,0.1672294,109680.0,109670.0,0.4772877]
[1761253414067,0.1672294,109680.0,109670.0,0.1502077]
[1761253414270,0.1672294,109680.0,109670.0,0.4772877]
[1761253414867,0.1672294,109680.0,109670.0,0.38613]
[1761253415066,0.1672294,109680.0,109670.0,0.05905]
[1761253415267,0.1672294,109680.0,109670.0,0.38613]
[1761253416371,0.1672294,109680.0,109670.0,0.4772877]
[1761253419579,0.1672294,109680.0,109670.0,0.4942477]
[1761253420877,0.33188811,109680.0,109670.0,0.4942477]
[1761253421076,0.35452034,109680.0,109670.0,0.4942477]
[1761253421980,0.51917905,109680.0,109670.0,0.4942477]
[1761253422178,0.51917905,109680.0,109670.0,0.40309]
[1761253423880,0.51917905,109680.0,109670.0,0.38613]
[1761253424281,0.54359646,109680.0,109670.0,0.38613]
[1761253425781,0.54359646,109680.0,109670.0,0.05905]
[1761253425982,0.54359646,109680.0,109670.0,0.38605]
[1761253430482,0.36068775,109680.0,109670.0,0.4941677]
[1761253430882,0.33627034,109680.0,109670.0,0.65882641]
[1761253431087,0.11378163,109680.0,109670.0,0.65882641]
[1761253431287,0.0911494,109680.0,109670.0,0.65882641]
[1761253431688,0.31363811,109680.0,109670.0,0.4941677]
[1761253431888,0.35452034,109680.0,109670.0,0.4941677]
[1761253432587,0.33627034,109680.0,109670.0,0.4941677]
[1761253433186,0.33627034,109680.0,109670.0,0.65882641]
[1761253433684,0.30759034,109680.0,109670.0,0.65882641]
[1761253433987,0.14293163,109680.0,109670.0,0.65882641]
[1761253434186,0.28495811,109680.0,109670.0,0.65882641]
[1761253434387,0.30759034,109680.0,109670.0,0.65882641]
[1761253434583,0.27844034,109680.0,109670.0,0.65882641]
[1761253436591,0.30500034,109680.0,109670.0,0.65882641]
[1761253437087,0.11378163,109680.0,109670.0,0.65882641]
[1761253437394,0.0911494,109680.0,109670.0,0.65882641]
[1761253438388,0.31327811,109680.0,109670.0,0.40301]
[1761253438690,0.35201034,109680.0,109670.0,0.05905]
[1761253438887,0.35201034,109680.0,109670.0,0.4771676]
[1761253439192,0.37642775,109680.0,109670.0,0.64182631]
[1761253440088,0.37642775,109680.0,109670.0,0.65517779]
[1761253440283,0.37642775,109680.0,109670.0,0.39936148]
[1761253440490,0.37642775,109680.0,109670.0,0.56402019]
[1761253441098,0.37642775,109680.0,109670.0,0.07240148]
[1761253441389,0.36032775,109680.0,109670.0,0.16356015]
[1761253441580,0.36032775,109680.0,109670.0,0.66775886]
[1761253442695,0.36032775,109680.0,109670.0,0.34083886]
[1761253443398,0.36032775,109680.0,109670.0,0.66771886]
[1761253443799,0.19566904,109680.0,109670.0,0.66771886]
[1761253443994,0.33769552,109680.0,109670.0,0.66771886]
[1761253444296,0.36032775,109680.0,109670.0,0.57656126]
[1761253444494,0.36032775,109680.0,109670.0,0.66771886]
[1761253445390,0.07320347,109700.0,109670.0,1.39703628]
[1761253445697,0.15292064,109710.0,109700.0,0.1638027]
[1761253445998,0.02921741,109710.0,109700.0,0.83335267]
[1761253446190,0.0048,109710.0,109700.0,0.50403525]
[1761253446387,0.0048,109710.0,109700.0,0.66869396]
[1761253446594,0.0048,109710.0,109700.0,0.50403525]
[1761253446800,0.0048,109710.0,109700.0,0.66869396]
[1761253447098,0.0959244,109710.0,109700.0,0.66869396]
[1761253447798,0.0048,109710.0,109700.0,0.66969396]
[1761253448000,0.0048,109710.0,109700.0,0.67590115]
[1761253448199,0.0048,109710.0,109700.0,0.67690115]
[1761253448402,0.0048,109710.0,109700.0,0.84155986]
[1761253448602,0.0959244,109710.0,109700.0,0.84155986]
[1761253449404,0.0959244,109710.0,109700.0,0.67690115]
[1761253449909,0.31805311,109710.0,109700.0,0.58576845]
[1761253451402,0.31805311,109710.0,109700.0,0.35002115]
[1761253451604,0.31805311,109710.0,109700.0,0.67682115]
[1761253453410,0.31805311,109710.0,109700.0,0.35002115]
[1761253453807,0.31805311,109710.0,109700.0,0.67678115]
[1761253456912,0.1533944,109710.0,109700.0,0.51212244]
[1761253458708,0.33404833,109710.0,109700.0,0.49585244]
[1761253458904,0.35661235,109710.0,109700.0,0.49585244]
[1761253459514,0.35661235,109710.0,109700.0,0.16909244]
[1761253459814,0.35661235,109710.0,109700.0,0.49577244]
[1761253460705,0.33404833,109710.0,109700.0,0.49577244]
[1761253460904,0.1694944,109710.0,109700.0,0.49577244]
[1761253461102,0.1694944,109710.0,109700.0,0.07795974]
[1761253461318,0.1694944,109710.0,109700.0,0.40463974]
[1761253461605,0.33404833,109710.0,109700.0,0.40463974]
[1761253461806,0.35661655,109710.0,109700.0,0.40463974]
[1761253462204,0.92117048,109710.0,109700.0,0.01535255]
[1761253462400,0.94558789,109710.0,109700.0,0.01535255]
[1761253462713,0.95374371,109710.0,109700.0,0.01535255]
[1761253463015,1.29659654,109710.0,109700.0,0.01535255]
[1761253463310,1.29659654,109710.0,109700.0,0.01335255]
[1761253464603,0.56995654,109710.0,109700.0,0.01335255]
[1761253464807,0.60246304,109710.0,109700.0,0.01335255]
[1761253465003,0.56995654,109710.0,109700.0,0.01335255]
[1761253466307,0.1551111,109690.0,109680.0,0.47654288]
[1761253466609,0.31966503,109690.0,109680.0,0.48985086]
[1761253466806,0.34223325,109690.0,109680.0,0.48985086]
[1761253467013,0.16350932,109690.0,109680.0,0.49900086]
[1761253467214,0.1409411,109690.0,109680.0,0.49900086]
[1761253467513,0.1409411,109690.0,109680.0,0.50000086]
[1761253468514,0.1409411,109690.0,109680.0,0.50100086]
[1761253470115,0.31680924,109700.0,109690.0,0.1540311]
[1761253470116,0.17852712,109700.0,109690.0,0.1540311]
[1761253470315,0.1417889,109700.0,109690.0,0.16733908]
[1761253473411,0.0911389,109700.0,109690.0,0.33189301]
[1761253473621,0.1465804,109710.0,109700.0,0.1540228]
[1761253473816,0.1465804,109710.0,109700.0,0.49389078]
[1761253476715,0.05545,109710.0,109700.0,0.49389078]
[1761253476916,0.1465745,109710.0,109700.0,0.49389078]
[1761253482415,0.32592843,109710.0,109700.0,0.06211798]
[1761253482729,0.93743227,109710.0,109700.0,0.33974798]
[1761253483028,0.96994119,109710.0,109700.0,0.33974798]
[1761253484427,0.80538726,109710.0,109700.0,0.38855798]
[1761253487427,0.77287834,109710.0,109700.0,0.38855798]
[1761253487727,0.80538726,109710.0,109700.0,0.38855798]
[1761253490627,0.64083333,109710.0,109700.0,0.47965078]
[1761253490830,0.22603333,109710.0,109700.0,0.49373078]
[1761253491130,0.35031012,109710.0,109700.0,0.40259798]
[1761253491332,0.37287834,109710.0,109700.0,0.38851798]
[1761253491922,0.37287834,109710.0,109700.0,0.38847798]
[1761253492123,0.37287834,109710.0,109700.0,0.45556078]
[1761253492830,0.37287834,109710.0,109700.0,0.47961078]
[1761253493932,0.37287834,109710.0,109700.0,0.47960275]
[1761253494730,0.20832441,109710.0,109700.0,0.47960275]
[1761253494932,0.18575619,109710.0,109700.0,0.49242275]
[1761253495135,0.17095619,109710.0,109700.0,0.49242275]
[1761253495535,0.07983169,109710.0,109700.0,0.65697668]
[1761253495839,0.03034,109710.0,109700.0,0.49242275]
[1761253496134,0.05472169,109710.0,109700.0,0.49242275]
[1761253496430,0.14584619,109710.0,109700.0,0.49242275]
[1761253496629,0.34740012,109710.0,109700.0,0.38838995]